fUSD/lending_fUSD_20251118
["ID","MTS","AMOUNT","RATE_DAILY","PERIOD"]
[394294976,1763424065476,151.0,0.00016884,2]
[394294977,1763424065745,151.0,0.00016884,2]
[394294978,1763424101781,219.89616128,0.00016914,2]
[394294979,1763424111204,200.24,0.00016,2]
[394294980,1763424232691,150.0,0.00016999,2]
[394294981,1763424233107,172.23261221,0.00016999,2]
[394294984,1763424353510,1579.93192237,0.00030136,120]
[394294985,1763424354081,237.92877751,0.00016999,2]
[394294997,1763424547881,368.36,0.0002619,120]
[394294998,1763424548156,368.36,0.00028809,120]
[394295002,1763424631467,-250.0,0.00017,2]
[394295003,1763424631478,-154.53844161,0.00017,2]
[394295004,1763424631489,-271.91129923,0.00017,2]
[394295005,1763424631501,-533.56929914,0.00017,2]
[394295006,1763424631512,-238.40096002,0.00017,2]
[394295007,1763424631522,-338.57656952,0.00017,2]
[394295008,1763424631531,-749.47365776,0.00017274,2]
[394295009,1763424631760,-436.64951159,0.00017274,2]
[394295010,1763424631771,-12.29683065,0.00017274,2]
[394295011,1763424631782,-1198.42,0.00017548,2]
[394295012,1763424631793,-128.43252758,0.00017559,2]
[394295013,1763424631806,-1745.41747242,0.00017559,2]
[394295014,1763424631815,-1198.42,0.00017822,2]
[394295015,1763424631824,-500.0,0.00017999,2]
[394295017,1763424631833,-1198.42,0.00018096,2]
[394295019,1763424631843,-1200.0,0.00018136,2]
[394295021,1763424631852,-300.0,0.00018136,2]
[394295023,1763424631861,-300.0,0.00018136,2]
[394295025,1763424631870,-300.0,0.00018136,2]
[394295027,1763424631879,-8474.61,0.00018137,2]
[394295029,1763424631888,-1873.85,0.00018234,2]
[394295031,1763424631898,-1198.42,0.0001837,2]
[394295032,1763424631907,-1198.42,0.00018644,2]
[394295033,1763424631916,-177.0,0.00018697,2]
[394295035,1763424631925,-1200.0,0.00018698,2]
[394295037,1763424631934,-3147.17727597,0.00018738,2]
[394295039,1763424631944,-500.0,0.0001876,2]
[394295041,1763424631953,-500.0,0.0001876,2]
[394295043,1763424631963,-200.0,0.00018898,2]
[394295045,1763424631973,-151.0,0.00018898,2]
[394295047,1763424631982,-151.0,0.00018898,2]
[394295049,1763424631991,-151.0,0.00018898,2]
[394295051,1763424632001,-151.0,0.00018898,2]
[394295052,1763424632010,-151.0,0.00018898,2]
[394295053,1763424632019,-205.58412549,0.00018898,2]
[394295054,1763424632029,-151.0,0.00018898,2]
[394295055,1763424632038,-151.0,0.00018898,2]
[394295056,1763424632047,-151.0,0.00018898,2]
[394295057,1763424632056,-151.0,0.00018898,2]
[394295058,1763424632066,-151.0,0.00018898,2]
[394295059,1763424632075,-151.0,0.00018898,2]
[394295060,1763424632084,-151.0,0.00018898,2]
[394295061,1763424632094,-151.0,0.00018898,2]
[394295062,1763424632103,-151.0,0.00018898,2]
[394295063,1763424632112,-151.0,0.00018898,2]
[394295064,1763424632121,-151.0,0.00018898,2]
[394295065,1763424632130,-151.0,0.00018898,2]
[394295066,1763424632139,-151.0,0.00018898,2]
[394295067,1763424632148,-151.0,0.00018898,2]
[394295068,1763424632157,-151.0,0.00018898,2]
[394295069,1763424632166,-151.0,0.00018898,2]
[394295070,1763424632185,-151.0,0.00018898,2]
[394295071,1763424632195,-151.0,0.00018898,2]
[394295072,1763424632204,-151.0,0.00018898,2]
[394295073,1763424632214,-151.0,0.00018898,2]
[394295074,1763424632223,-151.0,0.00018898,2]
[394295075,1763424632233,-151.0,0.00018898,2]
[394295076,1763424632242,-151.0,0.00018898,2]
[394295077,1763424632252,-151.0,0.00018898,2]
[394295078,1763424632261,-151.0,0.00018898,2]
[394295079,1763424632271,-151.0,0.00018898,2]
[394295080,1763424632283,-1000.0,0.000189,2]
[394295081,1763424632297,-1873.85,0.0001891,2]
[394295082,1763424632307,-1198.42356528,0.00018918,2]
[394295083,1763424632318,-300.0,0.00019,2]
[394295084,1763424632327,-150.0,0.0001943,2]
[394295085,1763424632336,-1873.85,0.00019585,2]
[394295086,1763424632346,-420.0,0.00019786,2]
[394295087,1763424632356,-420.0,0.00019786,2]
[394295088,1763424632367,-1680.0,0.00019883,2]
[394295089,1763424632378,-166.66,0.00020037,2]
[394295090,1763424632387,-1873.85,0.0002026,2]
[394295091,1763424632396,-1680.0,0.00020387,2]
[394295092,1763424632406,-166.66,0.00020458,2]
[394295093,1763424632415,-1099.9412607,0.00020854,2]
[394295094,1763424632425,-166.66,0.0002088,2]
[394295095,1763424632434,-1873.85,0.00020936,2]
[394295096,1763424632444,-368.36,0.00020952,2]
[394295097,1763424632454,-350.0,0.00021,2]
[394295098,1763424632464,-200.0,0.00021004,2]
[394295099,1763424632474,-193.85,0.00021108,2]
[394295100,1763424632483,-166.66,0.00021302,2]
[394295101,1763424632492,-312.4456887,0.00021474,2]
[394295102,1763424632503,-587.0,0.00021586,2]
[394295103,1763424632512,-587.0,0.00021586,2]
[394295104,1763424632521,-1873.85,0.00021611,2]
[394295105,1763424632532,-217.73520779,0.00021637,2]
[394295106,1763424632542,-166.66,0.00021724,2]
[394295107,1763424632552,-2177.0,0.00021798,2]
[394295108,1763424632561,-2000.0,0.000221,2]
[394295109,1763424632572,-166.66,0.00022146,30]
[394295110,1763424632582,-645.92562433,0.00022162,2]
[394295111,1763424632592,-2351.0,0.00022229,2]
[394295112,1763424632602,-193.85,0.00022281,2]
[394295113,1763424632612,-1873.85,0.00022286,2]
[394295114,1763424632621,-500.0,0.00022425,2]
[394295115,1763424632630,-626.0,0.00022438,2]
[394295116,1763424632639,-1000.0,0.000226,2]
[394295117,1763424632649,-1873.85,0.00022962,2]
[394295118,1763424632659,-400.0,0.00023,2]
[394295119,1763424632670,-297.1,0.0002311,2]
[394295120,1763424632679,-193.85,0.00023453,2]
[394295121,1763424632689,-219.26670882,0.0002346,2]
[394295122,1763424632698,-500.0,0.0002352,2]
[394295123,1763424632707,-500.0,0.0002352,2]
[394295124,1763424632716,-500.0,0.0002352,2]
[394295125,1763424632725,-500.0,0.0002352,2]
[394295126,1763424632735,-500.0,0.0002352,2]
[394295127,1763424632744,-500.0,0.0002352,2]
[394295128,1763424632754,-500.0,0.0002352,2]
[394295129,1763424632764,-500.0,0.0002352,2]
[394295130,1763424632773,-500.0,0.0002352,2]
[394295131,1763424632783,-250.0,0.0002352,2]
[394295132,1763424632793,-1000.0,0.0002352,2]
[394295133,1763424632803,-500.0,0.0002352,2]
[394295134,1763424632813,-500.0,0.0002352,2]
[394295135,1763424632822,-250.0,0.0002352,2]
[394295136,1763424632831,-1000.0,0.0002352,2]
[394295137,1763424632841,-500.0,0.0002352,2]
[394295138,1763424632850,-500.0,0.0002352,2]
[394295139,1763424632859,-250.0,0.0002352,2]
[394295140,1763424632869,-1000.0,0.0002352,2]
[394295141,1763424632878,-500.0,0.0002352,2]
[394295142,1763424632887,-500.0,0.0002352,2]
[394295143,1763424632896,-250.0,0.0002352,2]
[394295144,1763424632905,-1000.0,0.0002352,2]
[394295145,1763424632914,-500.0,0.0002352,2]
[394295146,1763424632923,-500.0,0.0002352,2]
[394295147,1763424632933,-250.0,0.0002352,2]
[394295148,1763424632943,-1000.0,0.0002352,2]
[394295149,1763424632953,-500.0,0.0002352,2]
[394295150,1763424632962,-250.0,0.0002352,2]
[394295151,1763424632971,-1000.0,0.0002352,2]
[394295152,1763424632980,-277.35679052,0.0002352,2]
[394295153,1763424632991,-500.0,0.0002352,2]
[394295154,1763424633001,-250.0,0.0002352,2]
[394295155,1763424633011,-1000.0,0.0002352,2]
[394295156,1763424633021,-500.0,0.0002352,2]
[394295157,1763424633030,-250.0,0.0002352,2]
[394295158,1763424633040,-1000.0,0.0002352,2]
[394295159,1763424633050,-500.0,0.0002352,2]
[394295160,1763424633059,-250.0,0.0002352,2]
[394295161,1763424633070,-1000.0,0.0002352,2]
[394295162,1763424633079,-500.0,0.0002352,2]
[394295163,1763424633090,-250.0,0.0002352,2]
[394295164,1763424633100,-1000.0,0.0002352,2]
[394295165,1763424633109,-500.0,0.0002352,2]
[394295166,1763424633119,-250.0,0.0002352,2]
[394295167,1763424633129,-1000.0,0.0002352,2]
[394295168,1763424633139,-500.0,0.0002352,2]
[394295169,1763424633149,-500.0,0.0002352,2]
[394295170,1763424633158,-500.0,0.0002352,2]
[394295171,1763424633167,-500.0,0.0002352,2]
[394295172,1763424633176,-500.0,0.0002352,2]
[394295173,1763424633186,-500.0,0.0002352,2]
[394295174,1763424633195,-500.0,0.0002352,2]
[394295175,1763424633205,-500.0,0.0002352,2]
[394295176,1763424633215,-500.0,0.0002352,2]
[394295177,1763424633224,-500.0,0.0002352,2]
[394295178,1763424633234,-250.0,0.0002352,2]
[394295179,1763424633243,-250.0,0.0002352,2]
[394295180,1763424633255,-250.0,0.0002352,2]
[394295181,1763424633264,-250.0,0.0002352,2]
[394295182,1763424633274,-250.0,0.0002352,2]
[394295183,1763424633283,-250.0,0.0002352,2]
[394295184,1763424633293,-250.0,0.0002352,2]
[394295185,1763424633306,-250.0,0.0002352,2]
[394295186,1763424633316,-250.0,0.0002352,2]
[394295187,1763424633325,-250.0,0.0002352,2]
[394295188,1763424633335,-250.0,0.0002352,2]
[394295189,1763424633346,-250.0,0.0002352,2]
[394295190,1763424633355,-250.0,0.0002352,2]
[394295191,1763424633364,-250.0,0.0002352,2]
[394295192,1763424633374,-250.0,0.0002352,2]
[394295193,1763424633383,-250.0,0.0002352,2]
[394295194,1763424633392,-250.0,0.0002352,2]
[394295195,1763424633402,-250.0,0.0002352,2]
[394295196,1763424633412,-341.06863586,0.0002352,2]
[394295197,1763424633422,-250.0,0.0002352,2]
[394295198,1763424633432,-250.0,0.0002352,2]
[394295199,1763424633443,-250.0,0.0002352,2]
[394295200,1763424633453,-250.0,0.0002352,2]
[394295201,1763424633463,-250.0,0.0002352,2]
[394295202,1763424633473,-250.0,0.0002352,2]
[394295203,1763424633483,-250.0,0.0002352,2]
[394295204,1763424633493,-250.0,0.0002352,2]
[394295205,1763424633504,-250.0,0.0002352,2]
[394295206,1763424633513,-250.0,0.0002352,2]
[394295207,1763424633522,-250.0,0.0002352,2]
[394295208,1763424633532,-772.0,0.00023549,2]
[394295209,1763424633541,-193.0,0.00023549,2]
[394295210,1763424633550,-368.36,0.00023571,2]
[394295211,1763424633559,-1873.85,0.00023637,2]
[394295212,1763424633568,-5000.0,0.00023773,2]
[394295213,1763424633578,-219.26670882,0.00023827,2]
[394295214,1763424633587,-219.26670882,0.00023988,2]
[394295215,1763424633596,-219.26670882,0.00024229,2]
[394295216,1763424633606,-580.0,0.00024237,2]
[394295217,1763424633615,-1873.85,0.00024312,2]
[394295218,1763424633624,-219.26670884,0.00024437,2]
[394295219,1763424633633,-63137.23,0.0002449,2]
[394295220,1763424633642,-189.88,0.00024535,2]
[394295221,1763424633652,-193.85,0.00024626,2]
[394295222,1763424633661,-1000.0,0.00024658,2]
[394295223,1763424633671,-1256.2364736,0.00024743,2]
[394295224,1763424633680,-34307.7414365,0.00024743,2]
[394295225,1763424633689,-1844.3319997,0.00024743,2]
[394295226,1763424633698,-182.83530148,0.00024743,2]
[394295227,1763424633707,-184.23936,0.000248,2]
[394295228,1763424633716,-277.35679052,0.00024889,2]
[394295229,1763424633726,-184.23936,0.0002493,2]
[394295230,1763424633735,-150.0,0.00024944,2]
[394295231,1763424633744,-1873.85,0.00024988,2]
[394295232,1763424633754,-450.0,0.00025,2]
[394295233,1763424633763,-250.0,0.00025257,2]
[394295234,1763424633772,-166.66,0.00025371,2]
[394295235,1763424633781,-184.23936,0.0002543,2]
[394295236,1763424633791,-10455.71,0.00025615,2]
[394295237,1763424633799,-1873.85,0.00025663,2]
[394295238,1763424633808,-193.85,0.00025799,2]
[394295239,1763424633818,-2000.0,0.000258,2]
[394295240,1763424633827,-1020.0,0.000258,3]
[394295241,1763424633836,-2077.89,0.00025829,2]
[394295242,1763424633846,-1000.0,0.00026027,2]
[394295243,1763424633855,-166.66,0.00026157,2]
[394295244,1763424633866,-500.0,0.00026242,2]
[394295245,1763424633876,-1000.0,0.00026301,2]
[394295246,1763424633886,-1000.0,0.00026575,2]
[394295247,1763424633895,-2332.52565792,0.00026676,2]
[394295248,1763424633906,-639.42,0.00026676,2]
[394295249,1763424633918,-1000.0,0.00026849,2]
[394295250,1763424633930,-166.66,0.00026942,2]
[394295251,1763424633939,-193.85,0.00026971,2]
[394295252,1763424633948,-500.0,0.00027,2]
[394295253,1763424633958,-5518.0,0.00027,5]
[394295254,1763424633968,-1999.0,0.00027123,2]
[394295255,1763424633977,-500.0,0.00027397,2]
[394295256,1763424633987,-1844.3319997,0.00027543,2]
[394295257,1763424633998,-6866.0,0.00027726,5]
[394295258,1763424634008,-166.66,0.00027728,2]
[394295259,1763424634017,-34307.7414365,0.0002785,2]
[394295260,1763424634026,-193.85,0.00028144,2]
[394295261,1763424634036,-193.85,0.00029316,2]
[394295262,1763424634045,-1663.0,0.000295,2]
[394295263,1763424634055,-8474.61,0.00029918,2]
[394295264,1763424634064,-896.26,0.0003,15]
[394295265,1763424634073,-1678.47,0.00030101,2]
[394295266,1763424634082,-500.0,0.00030135,7]
[394295267,1763424634091,-1844.3319997,0.00030343,2]
[394295268,1763424634100,-354.7953367,0.00030389,2]
[394295269,1763424634110,-193.85,0.00030489,2]
[394295270,1763424634119,-19676.4439483,0.00030937,3]
[394295271,1763424634128,-34307.7414365,0.00030957,2]
[394295272,1763424634137,-368.36,0.00031428,120]
[394295273,1763424634146,-3657.92456606,0.00031562,2]
[394295274,1763424634155,-193.85,0.00031662,2]
[394295275,1763424634164,-418.90185883,0.00031885,2]
[394295276,1763424634173,-354.79533667,0.00031987,2]
[394295277,1763424634182,-179.2183524,0.00032,2]
[394295278,1763424634192,-19676.4439483,0.00032018,3]
[394295279,1763424634201,-3657.92456604,0.00032674,2]
[394295280,1763424634210,-1844.3319997,0.00033143,2]
[394295281,1763424634219,-639.42,0.00033165,2]
[394295282,1763424634229,-1663.59372393,0.000332,2]
[394295283,1763424634238,-354.79533667,0.00033584,2]
[394295284,1763424634248,-851.92205124,0.00033746,5]
[394295285,1763424634257,-3657.92456604,0.00033787,2]
[394295286,1763424634266,-180.65215279,0.00033838,15]
[394295287,1763424634275,-344.0,0.00034,120]
[394295288,1763424634284,-505.0,0.00034,2]
[394295289,1763424634295,-19676.4439483,0.00034044,3]
[394295290,1763424634309,-151.0,0.00034051,14]
[394295291,1763424634319,-19676.4439483,0.00034054,3]
[394295292,1763424634328,-34307.7414365,0.00034064,2]
[394295293,1763424634338,-1683.057,0.00034172,38]
[394295294,1763424634347,-173.407,0.00034172,38]
[394295295,1763424634356,-180.65215271,0.00034697,15]
[394295296,1763424634365,-3657.92456604,0.00034899,2]
[394295297,1763424634375,-180.73656589,0.00035,120]
[394295298,1763424634385,-354.79533667,0.00035182,2]
[394295299,1763424634394,-180.65215271,0.00035557,15]
[394295300,1763424634403,-3657.92456604,0.00036011,2]
[394295301,1763424634413,-180.65215271,0.00036416,15]
[394295302,1763424634422,-19676.4439483,0.00036488,4]
[394295303,1763424634431,-354.79533667,0.0003678,2]
[394295304,1763424634441,-1139.712,0.00036905,2]
[394295305,1763424634451,-560.0,0.00036905,2]
[394295306,1763424634460,-3657.92456604,0.00037124,2]
[394295307,1763424634471,-181.61613088,0.000372,120]
[394295308,1763424634480,-180.65215271,0.00037276,15]
[394295309,1763424634489,-150.0,0.00037504,7]
[394295310,1763424634498,-150.0,0.00037504,7]
[394295311,1763424634507,-150.0,0.00037504,7]
[394295312,1763424634517,-150.0,0.00037504,7]
[394295313,1763424634526,-150.0,0.00037504,7]
[394295314,1763424634535,-150.0,0.00037504,7]
[394295315,1763424634545,-150.0,0.00037504,7]
[394295316,1763424634554,-150.0,0.00037504,7]
[394295317,1763424634564,-150.0,0.00037504,7]
[394295318,1763424634573,-150.0,0.00037504,7]
[394295319,1763424634584,-150.0,0.00037504,7]
[394295320,1763424634593,-150.0,0.00037504,7]
[394295321,1763424634602,-150.0,0.00037504,7]
[394295322,1763424634611,-162.69206005,0.00037504,7]
[394295323,1763424634620,-150.0,0.00037723,7]
[394295324,1763424634630,-19676.4439483,0.00037745,4]
[394295325,1763424634640,-150.0,0.00037749,7]
[394295326,1763424634650,-150.0,0.00037802,7]
[394295327,1763424634660,-150.0,0.00037851,7]
[394295328,1763424634669,-150.0,0.00037943,7]
[394295329,1763424634678,-150.0,0.00037967,7]
[394295330,1763424634687,-150.0,0.00037994,7]
[394295331,1763424634696,-150.0,0.00038025,7]
[394295332,1763424634705,-150.0,0.00038099,7]
[394295333,1763424634714,-150.0,0.00038099,7]
[394295334,1763424634723,-150.0,0.00038099,7]
[394295335,1763424634732,-180.65215271,0.00038135,15]
[394295336,1763424634742,-11111.0,0.00038136,120]
[394295337,1763424634752,-150.0,0.00038162,7]
[394295338,1763424634761,-150.0,0.00038199,7]
[394295339,1763424634770,-3657.92456604,0.00038236,2]
[394295340,1763424634780,-150.0,0.00038239,7]
[394295341,1763424634790,-354.79533667,0.00038378,2]
[394295342,1763424634801,-150.0,0.00038381,7]
[394295343,1763424634811,-150.0,0.00038397,7]
[394295344,1763424634822,-150.0,0.0003843,7]
[394295345,1763424634832,-150.0,0.00038485,7]
[394295346,1763424634842,-150.0,0.00038546,7]
[394295347,1763424634850,-150.0,0.00038546,7]
[394295348,1763424634860,-150.0,0.00038601,7]
[394295349,1763424634870,-19676.4439483,0.00038618,4]
[394295350,1763424634879,-150.0,0.00038695,7]
[394295351,1763424634890,-150.0,0.00038695,7]
[394295352,1763424634899,-150.0,0.00038695,7]
[394295353,1763424634907,-150.0,0.0003873,7]
[394295354,1763424634917,-150.0,0.0003882,7]
[394295355,1763424634926,-335.7931,0.00038888,30]
[394295356,1763424634934,-150.0,0.00038893,7]
[394295357,1763424634942,-150.0,0.00038893,7]
[394295358,1763424634951,-150.0,0.00038893,7]
[394295359,1763424634960,-150.0,0.00038975,7]
[394295360,1763424634970,-150.0,0.00038992,7]
[394295361,1763424634979,-180.65215271,0.00038995,15]
[394295362,1763424634990,-150.0,0.00039039,7]
[394295363,1763424635000,-17488.75,0.00039055,2]
[394295364,1763424635009,-150.0,0.00039067,7]
[394295365,1763424635019,-19804.1064359,0.00039183,4]
[394295366,1763424635028,-19676.4439483,0.00039192,4]
[394295367,1763424635038,-150.0,0.0003922,7]
[394295368,1763424635047,-150.0,0.0003924,7]
[394295369,1763424635057,-150.0,0.00039259,7]
[394295370,1763424635066,-150.0,0.0003929,7]
[394295371,1763424635075,-150.0,0.0003929,7]
[394295372,1763424635085,-150.0,0.0003929,7]
[394295373,1763424635095,-1318.0,0.00039328,2]
[394295374,1763424635104,-608.0,0.00039328,2]
[394295375,1763424635113,-575.0,0.00039328,2]
[394295376,1763424635122,-821.0,0.00039328,2]
[394295377,1763424635131,-1599.0,0.00039328,2]
[394295378,1763424635140,-3657.92456604,0.00039348,2]
[394295379,1763424635150,-150.0,0.00039356,7]
[394295380,1763424635159,-150.0,0.00039465,7]
[394295381,1763424635168,-150.0,0.00039478,7]
[394295382,1763424635177,-150.0,0.00039588,7]
[394295383,1763424635187,-150.0,0.00039588,7]
[394295384,1763424635196,-150.0,0.00039588,7]
[394295385,1763424635206,-150.0,0.00039588,7]
[394295386,1763424635215,-150.0,0.00039633,2]
[394295387,1763424635225,-150.0,0.00039633,120]
[394295388,1763424635234,-639.42,0.00039654,2]
[394295389,1763424635245,-150.0,0.00039697,7]
[394295390,1763424635265,-150.0,0.0003971,7]
[394295391,1763424635286,-791.0,0.00039726,30]
[394295392,1763424635297,-999.0,0.00039731,3]
[394295393,1763424635310,-610.0,0.00039737,2]
[394295394,1763424635321,-150.0,0.00039819,7]
[394295395,1763424635330,-204.25,0.00039833,5]
[394295396,1763424635341,-180.65215271,0.00039854,15]
[394295397,1763424635350,-150.0,0.00039885,7]
[394295398,1763424635359,-150.0,0.00039885,7]
[394295399,1763424635370,-150.0,0.00039885,7]
[394295400,1763424635379,-11783.30383952,0.00039895,4]
[394295401,1763424635396,-8020.80259638,0.00039895,4]
[394295402,1763424635405,-560.0,0.00039905,2]
[394295403,1763424635414,-19676.4439483,0.00039906,4]
[394295404,1763424635424,-150.0,0.00039917,7]
[394295405,1763424635433,-150.0,0.00039935,7]
[394295406,1763424635443,-150.0,0.00039955,7]
[394295407,1763424635452,-354.79533667,0.00039975,2]
[394295408,1763424635462,-9005.54269537,0.0003998,4]
[394295409,1763424635478,-653.70972726,0.0003998,4]
[394295410,1763424635489,-297.05507805,0.0003998,4]
[394295411,1763424635501,-531.67165279,0.0003998,4]
[394295412,1763424635512,-1626.67393895,0.0003998,4]
[394295413,1763424635524,-388.40109129,0.0003998,4]
[394295414,1763424635536,-6600.69463902,0.0003998,4]
[394295417,1763424637480,-700.35761317,0.0003998,4]
[394295418,1763424637489,-2111.29717936,0.00039989,4]
[394295419,1763424637502,-813.68582912,0.00039989,4]
[394295420,1763424637546,-16751.46093982,0.00039989,4]
[394295421,1763424637555,-1000.0,0.00039994,2]
[394295422,1763424637564,-500.0,0.00039999,31]
[394295423,1763424637574,-168.71032878,0.00039999,2]
[394295424,1763424637584,-500.0,0.00039999,7]
[394295425,1763424637593,-500.0,0.00039999,31]
[394295426,1763424637603,-500.0,0.00039999,31]
[394295427,1763424637612,-500.0,0.00039999,31]
[394295428,1763424637622,-500.0,0.00039999,31]
[394295429,1763424637631,-500.0,0.00039999,31]
[394295430,1763424637642,-500.0,0.00039999,31]
[394295431,1763424637651,-500.0,0.00039999,31]
[394295432,1763424637661,-567.32504452,0.00039999,7]
[394295433,1763424637671,-500.0,0.00039999,31]
[394295434,1763424637681,-500.0,0.00039999,31]
[394295435,1763424637691,-500.0,0.00039999,31]
[394295436,1763424637700,-500.0,0.00039999,31]
[394295437,1763424637710,-500.0,0.00039999,31]
[394295438,1763424637720,-500.0,0.00039999,31]
[394295439,1763424637729,-500.0,0.00039999,31]
[394295441,1763424637739,-500.0,0.00039999,31]
[394295443,1763424637748,-500.0,0.00039999,31]
[394295444,1763424637757,-435.46715372,0.00039999,31]
[394295447,1763424637767,-500.0,0.00039999,31]
[394295449,1763424637776,-500.0,0.00039999,31]
[394295451,1763424637786,-500.0,0.00039999,31]
[394295453,1763424637795,-500.0,0.00039999,31]
[394295455,1763424637804,-500.0,0.00039999,31]
[394295457,1763424637813,-500.0,0.00039999,31]
[394295459,1763424637823,-200.0,0.0004,120]
[394295461,1763424637832,-5225.73,0.0004,14]
[394295462,1763424637842,-151.31,0.0004,30]
[394295464,1763424637852,-150.0,0.00040109,7]
[394295466,1763424637861,-150.0,0.00040136,7]
[394295468,1763424637871,-150.0,0.00040183,7]
[394295470,1763424637881,-150.0,0.000402,7]
[394295472,1763424637890,-150.0,0.00040282,7]
[394295475,1763424637900,-150.0,0.00040282,7]
[394295477,1763424637909,-150.0,0.00040282,7]
[394295479,1763424637918,-150.0,0.00040355,7]
[394295481,1763424637927,-150.0,0.00040446,7]
[394295483,1763424637936,-2496.80411415,0.00040461,15]
[394295485,1763424637947,-445.91491687,0.00040461,15]
[394295535,1763424639527,-350.115,0.00040461,15]
[394295536,1763424639626,-365.09053502,0.00040461,15]
[394295537,1763424639636,-150.0,0.00040481,7]
[394295538,1763424639645,-150.0,0.00040481,7]
[394295539,1763424639656,-150.0,0.00040481,7]
[394295540,1763424639665,-150.0,0.00040575,7]
[394295541,1763424639675,-150.0,0.00040629,7]
[394295542,1763424639683,-119.59968176,0.00040629,7]
[394295562,1763424642815,-30.40031824,0.00040629,7]
[394295563,1763424642826,-150.0,0.00040691,7]
[394295564,1763424642836,-180.65215271,0.00040714,15]
[394295565,1763424642846,-503.98102011,0.00040718,4]
[394295566,1763424643026,-669.28201113,0.00040718,4]
[394295572,1763424646045,-13030.0,0.00040718,4]
[394295579,1763424857239,305.3232488,0.000164,2]
[394295588,1763425348235,602.52,0.00013699,2]
[394295594,1763425582870,303.07046267,0.000167,2]
[394295596,1763425608706,200.0,0.00016914,2]
[394295597,1763425613098,5000.0,0.000162,5]
[394295634,1763425676739,-250.0,0.00017,2]
[394295635,1763425677793,-488.16463628,0.00017,2]
[394295636,1763425677823,-10000.01,0.00017,2]
[394295637,1763425679675,-10000.01,0.00017,2]
[394295638,1763425679816,-10000.01,0.00017,2]
[394295639,1763425679974,-10000.01,0.00017,2]
[394295640,1763425680102,-10000.01,0.00017,2]
[394295641,1763425680241,-10000.01,0.00017,2]
[394295642,1763425680679,-10000.01,0.00017,2]
[394295643,1763425680695,-10000.01,0.00017,2]
[394295644,1763425683045,-10000.01,0.00017,2]
[394295645,1763425686837,200.0,0.0001634,2]
[394295651,1763425717028,9800.01,0.00015,3]
[394295652,1763425717053,10000.01,0.00015,3]
[394295653,1763425717086,10000.01,0.00015,3]
[394295654,1763425717109,10000.01,0.00015,3]
[394295655,1763425717146,10000.01,0.00015,3]
[394295656,1763425717172,10000.01,0.00015,3]
[394295657,1763425717196,10000.01,0.00015,3]
[394295658,1763425717221,10000.01,0.00015,3]
[394295659,1763425717245,10000.01,0.00015,3]
[394295660,1763425717269,10000.01,0.00015,3]
[394295661,1763425717297,158399.34021394,0.00015,3]
[394295663,1763425736727,666.4644,0.00016936,2]
[394295664,1763425741267,300.0,0.00016999,2]
[394295665,1763425747582,4918.72902084,0.000169,2]
[394295709,1763425751341,500.0,0.00016973,2]
[394295710,1763425751757,161.98631616,0.00016973,2]
[394295711,1763425751846,217.8176856,0.00016973,2]